fUST/lending_fUST_20240723
["ID","MTS","AMOUNT","RATE_DAILY","PERIOD"]
[332907605,1721674244449,-364.355095,0.00013961,2]
[332907606,1721674244462,-364.355095,0.00013961,2]
[332907607,1721674244472,-73223.31669268,0.00013961,5]
[332907608,1721674244481,-82495.906505,0.00013962,2]
[332907609,1721674244490,-151.0,0.00013962,2]
[332907610,1721674244498,-364.355095,0.00013962,2]
[332907611,1721674244507,-364.355095,0.00013962,2]
[332907612,1721674244519,-2360.04,0.00013969,2]
[332907613,1721674244528,-2360.04,0.00013969,2]
[332907614,1721674244537,-2360.04,0.0001397,2]
[332907615,1721674244546,-2360.04,0.00013971,2]
[332907616,1721674244556,-2360.04,0.00013971,2]
[332907617,1721674244565,-2360.04,0.00013971,2]
[332907618,1721674244575,-2360.04,0.00013971,2]
[332907619,1721674244584,-2360.14668831,0.00013971,2]
[332907620,1721674244593,-2669.62,0.00013971,2]
[332907621,1721674244602,-2669.62,0.00013971,2]
[332907622,1721674244611,-2669.62,0.00013971,2]
[332907623,1721674244620,-151.0,0.00013971,2]
[332907624,1721674244629,-151.0,0.00013971,2]
[332907625,1721674244638,-151.0,0.00013971,2]
[332907626,1721674244647,-326.70932,0.00013971,2]
[332907627,1721674244656,-326.70932,0.00013971,2]
[332907628,1721674244665,-151.0,0.00013971,2]
[332907629,1721674244674,-538.56,0.00013972,2]
[332907630,1721674244684,-410.5,0.00013972,2]
[332907631,1721674244694,-500.0,0.00013972,2]
[332907632,1721674244703,-1953.9,0.00013972,2]
[332907633,1721674244712,-999.97,0.00013972,2]
[332907634,1721674244723,-220.51,0.00013972,2]
[332907635,1721674244733,-500.0,0.00013972,2]
[332907636,1721674244742,-500.0,0.00013972,2]
[332907637,1721674244752,-500.0,0.00013972,2]
[332907638,1721674244762,-1491.64,0.00013972,2]
[332907639,1721674244773,-369.9,0.00013972,2]
[332907640,1721674244783,-500.0,0.00013972,2]
[332907641,1721674244794,-402.36,0.00013972,2]
[332907642,1721674244804,-500.0,0.00013972,2]
[332907643,1721674244813,-1985.59,0.00013972,2]
[332907644,1721674244823,-500.0,0.00013972,2]
[332907645,1721674244832,-500.0,0.00013972,2]
[332907646,1721674244842,-355.61261989,0.00013972,2]
[332907647,1721674244850,-500.0,0.00013972,2]
[332907648,1721674244859,-298.56,0.00013972,2]
[332907649,1721674244868,-500.0,0.00013972,2]
[332907650,1721674244878,-332.08563991,0.00013972,2]
[332907651,1721674244887,-296.66737118,0.00013972,2]
[332907652,1721674244897,-500.0,0.00013972,2]
[332907653,1721674244906,-430.2,0.00013972,2]
[332907654,1721674244916,-500.0,0.00013972,2]
[332907655,1721674244925,-500.0,0.00013972,2]
[332907656,1721674244935,-500.0,0.00013972,2]
[332907657,1721674244946,-500.0,0.00013972,2]
[332907658,1721674244956,-500.0,0.00013972,2]
[332907659,1721674244965,-500.0,0.00013972,2]
[332907660,1721674244975,-415.88450371,0.00013972,2]
[332907661,1721674244984,-500.0,0.00013972,2]
[332907662,1721674244994,-500.0,0.00013972,2]
[332907663,1721674245003,-500.0,0.00013972,2]
[332907664,1721674245012,-401.69,0.00013972,2]
[332907665,1721674245024,-623.336756,0.00013972,2]
[332907666,1721674245033,-500.0,0.00013972,2]
[332907667,1721674245043,-500.0,0.00013972,2]
[332907668,1721674245052,-500.0,0.00013972,2]
[332907669,1721674245061,-500.0,0.00013972,2]
[332907670,1721674245070,-519.12,0.00013972,2]
[332907671,1721674245079,-500.0,0.00013972,2]
[332907672,1721674245088,-297.12863458,0.00013972,2]
[332907673,1721674245097,-500.0,0.00013972,2]
[332907674,1721674245106,-500.0,0.00013972,2]
[332907675,1721674245115,-500.0,0.00013972,2]
[332907676,1721674245124,-500.0,0.00013972,2]
[332907677,1721674245133,-500.0,0.00013972,2]
[332907678,1721674245143,-229.93,0.00013972,2]
[332907679,1721674245152,-500.0,0.00013972,2]
[332907680,1721674245164,-500.0,0.00013972,2]
[332907681,1721674245173,-500.0,0.00013972,2]
[332907682,1721674245184,-586.96858094,0.00013972,2]
[332907683,1721674245194,-500.0,0.00013972,2]
[332907684,1721674245204,-391.57,0.00013972,2]
[332907685,1721674245214,-500.0,0.00013972,2]
[332907686,1721674245223,-297.60765715,0.00013972,2]
[332907687,1721674245232,-449.08211785,0.00013972,2]
[332907688,1721674245242,-500.0,0.00013972,2]
[332907689,1721674245252,-500.0,0.00013972,2]
[332907690,1721674245261,-416.79,0.00013972,2]
[332907691,1721674245274,-500.0,0.00013972,2]
[332907692,1721674245284,-546.78,0.00013972,2]
[332907693,1721674245293,-500.0,0.00013972,2]
[332907694,1721674245302,-503.66669502,0.00013972,2]
[332907695,1721674245311,-500.0,0.00013972,2]
[332907696,1721674245321,-500.0,0.00013972,2]
[332907697,1721674245330,-500.0,0.00013972,2]
[332907698,1721674245340,-500.0,0.00013972,2]
[332907699,1721674245349,-500.0,0.00013972,2]
[332907700,1721674245358,-500.0,0.00013972,2]
[332907701,1721674245367,-500.0,0.00013972,2]
[332907702,1721674245377,-500.0,0.00013972,2]
[332907703,1721674245386,-371.16,0.00013972,2]
[332907704,1721674245396,-500.0,0.00013972,2]
[332907705,1721674245405,-500.0,0.00013972,2]
[332907706,1721674245416,-500.0,0.00013972,2]
[332907707,1721674245426,-547.64,0.00013972,2]
[332907708,1721674245435,-500.0,0.00013972,2]
[332907709,1721674245444,-500.0,0.00013972,2]
[332907710,1721674245454,-566.88517477,0.00013972,2]
[332907711,1721674245463,-368.02272129,0.00013972,2]
[332907712,1721674245473,-410.81164326,0.00013972,2]
[332907713,1721674245484,-500.0,0.00013972,2]
[332907715,1721674245493,-500.0,0.00013972,2]
[332907717,1721674245502,-500.0,0.00013972,2]
[332907719,1721674245511,-500.0,0.00013972,2]
[332907721,1721674245526,-259.59583348,0.00013972,2]
[332907722,1721674245537,-518.63,0.00013972,2]
[332907724,1721674245547,-500.0,0.00013972,2]
[332907726,1721674245556,-500.0,0.00013972,2]
[332907727,1721674245566,-500.0,0.00013972,2]
[332907728,1721674245575,-500.0,0.00013972,2]
[332907729,1721674245585,-500.0,0.00013972,2]
[332907730,1721674245594,-578.09,0.00013972,2]
[332907731,1721674245603,-500.0,0.00013972,2]
[332907732,1721674245612,-500.0,0.00013972,2]
[332907734,1721674245622,-500.0,0.00013972,2]
[332907736,1721674245631,-554.51,0.00013972,2]
[332907737,1721674245640,-500.0,0.00013972,2]
[332907738,1721674245649,-500.0,0.00013972,2]
[332907739,1721674245658,-500.0,0.00013972,2]
[332907740,1721674245668,-500.0,0.00013972,2]
[332907741,1721674245677,-500.0,0.00013972,2]
[332907742,1721674245687,-500.0,0.00013972,2]
[332907743,1721674245696,-500.0,0.00013972,2]
[332907744,1721674245706,-500.0,0.00013972,2]
[332907745,1721674245716,-500.0,0.00013972,2]
[332907746,1721674245726,-500.0,0.00013972,2]
[332907747,1721674245736,-500.0,0.00013972,2]
[332907748,1721674245745,-500.0,0.00013972,2]
[332907750,1721674245755,-500.0,0.00013972,2]
[332907751,1721674245764,-500.0,0.00013972,2]
[332907752,1721674245778,-447.43,0.00013972,2]
[332907753,1721674245788,-500.0,0.00013972,2]
[332907754,1721674245797,-645.64,0.00013972,2]
[332907755,1721674245807,-500.0,0.00013972,2]
[332907756,1721674245817,-500.0,0.00013972,2]
[332907757,1721674245826,-500.0,0.00013972,2]
[332907758,1721674245838,-500.0,0.00013972,2]
[332907759,1721674245850,-500.0,0.00013972,2]
[332907760,1721674245860,-500.0,0.00013972,2]
[332907761,1721674245871,-500.0,0.00013972,2]
[332907762,1721674245882,-500.0,0.00013972,2]
[332907763,1721674245892,-638.7041191,0.00013972,2]
[332907764,1721674245901,-500.0,0.00013972,2]
[332907765,1721674245911,-500.0,0.00013972,2]
[332907766,1721674245920,-500.0,0.00013972,2]
[332907767,1721674245930,-399.1874738,0.00013972,2]
[332907768,1721674245941,-500.0,0.00013972,2]
[332907769,1721674245950,-500.0,0.00013972,2]
[332907770,1721674245962,-500.0,0.00013972,2]
[332907771,1721674245972,-507.13,0.00013972,2]
[332907772,1721674245981,-500.0,0.00013972,2]
[332907773,1721674245991,-500.0,0.00013972,2]
[332907774,1721674246000,-500.0,0.00013972,2]
[332907775,1721674246009,-504.20827698,0.00013972,2]
[332907776,1721674246020,-500.0,0.00013972,2]
[332907777,1721674246030,-599.98,0.00013972,2]
[332907778,1721674246039,-435.93,0.00013972,2]
[332907779,1721674246048,-500.0,0.00013972,2]
[332907780,1721674246057,-350.61,0.00013972,2]
[332907781,1721674246067,-500.0,0.00013972,2]
[332907782,1721674246076,-369.16,0.00013972,2]
[332907783,1721674246086,-500.0,0.00013972,2]
[332907784,1721674246096,-500.0,0.00013972,2]
[332907785,1721674246106,-505.69370288,0.00013972,2]
[332907786,1721674246115,-500.0,0.00013972,2]
[332907787,1721674246128,-443.13917669,0.00013972,2]
[332907788,1721674246140,-500.0,0.00013972,2]
[332907789,1721674246274,-500.0,0.00013972,2]
[332907790,1721674246285,-401.78,0.00013972,2]
[332907791,1721674246296,-500.0,0.00013972,2]
[332907792,1721674246306,-500.0,0.00013972,2]
[332907793,1721674246316,-430.77,0.00013972,2]
[332907794,1721674246327,-500.0,0.00013972,2]
[332907795,1721674246339,-500.0,0.00013972,2]
[332907796,1721674246349,-500.000001,0.00013972,2]
[332907797,1721674246359,-500.0,0.00013972,2]
[332907798,1721674246369,-500.0,0.00013972,2]
[332907799,1721674246379,-500.0,0.00013972,2]
[332907800,1721674246389,-500.0,0.00013972,2]
[332907801,1721674246399,-500.0,0.00013972,2]
[332907802,1721674246409,-500.0,0.00013972,2]
[332907803,1721674246419,-500.0,0.00013972,2]
[332907804,1721674246429,-552.42,0.00013972,2]
[332907805,1721674246438,-500.0,0.00013972,2]
[332907806,1721674246447,-434.67,0.00013972,2]
[332907807,1721674246458,-500.0,0.00013972,2]
[332907808,1721674246467,-500.0,0.00013972,2]
[332907809,1721674246477,-461.48,0.00013972,2]
[332907810,1721674246486,-543.31571921,0.00013972,2]
[332907811,1721674246495,-500.0,0.00013972,2]
[332907812,1721674246505,-500.0,0.00013972,2]
[332907813,1721674246518,-500.0,0.00013972,2]
[332907814,1721674246527,-500.0,0.00013972,2]
[332907815,1721674246536,-500.0,0.00013972,2]
[332907816,1721674246545,-500.0,0.00013972,2]
[332907817,1721674246556,-500.0,0.00013972,2]
[332907818,1721674246568,-500.0,0.00013972,2]
[332907819,1721674246579,-612.57565108,0.00013972,2]
[332907820,1721674246591,-500.0,0.00013972,2]
[332907821,1721674246600,-167.87,0.00013972,2]
[332907822,1721674246611,-151.0,0.00013972,2]
[332907823,1721674246621,-500.0,0.00013972,2]
[332907825,1721674246630,-482.2656676,0.00013972,2]
[332907827,1721674246640,-536.07823364,0.00013972,2]
[332907829,1721674246652,-500.0,0.00013972,2]
[332907832,1721674246664,-500.0,0.00013972,2]
[332907834,1721674246673,-431.34980111,0.00013972,2]
[332907836,1721674246683,-428.08411893,0.00013972,2]
[332907838,1721674246693,-598.50153424,0.00013972,2]
[332907839,1721674246703,-500.0,0.00013972,2]
[332907840,1721674246712,-500.0,0.00013972,2]
[332907841,1721674246722,-500.0,0.00013972,2]
[332907842,1721674246734,-500.0,0.00013972,2]
[332907843,1721674246744,-500.0,0.00013972,2]
[332907844,1721674246752,-163.203199,0.00013972,2]
[332907845,1721674246760,-500.0,0.00013972,2]
[332907846,1721674246773,-151.0,0.00013972,2]
[332907847,1721674246782,-500.0,0.00013972,2]
[332907848,1721674246792,-500.0,0.00013972,2]
[332907849,1721674246805,-185.58,0.00013972,2]
[332907850,1721674246814,-500.0,0.00013972,2]
[332907851,1721674246823,-1886.51,0.00013972,2]
[332907852,1721674246832,-611.19489112,0.00013972,2]
[332907853,1721674246841,-500.0,0.00013972,2]
[332907854,1721674246850,-500.0,0.00013972,2]
[332907855,1721674246859,-500.0,0.00013972,2]
[332907856,1721674246868,-500.0,0.00013972,2]
[332907857,1721674246877,-500.0,0.00013972,2]
[332907858,1721674246887,-151.0,0.00013972,2]
[332907859,1721674246898,-500.0,0.00013972,2]
[332907860,1721674246908,-500.0,0.00013972,2]
[332907861,1721674246918,-505.33330674,0.00013972,2]
[332907862,1721674246927,-500.0,0.00013972,2]
[332907863,1721674246937,-504.92000203,0.00013972,2]
[332907864,1721674246947,-500.0,0.00013972,2]
[332907865,1721674246958,-497.89,0.00013972,2]
[332907866,1721674246969,-151.0,0.00013972,2]
[332907867,1721674246979,-151.0,0.00013972,2]
[332907868,1721674246988,-151.0,0.00013972,2]
[332907869,1721674246997,-161.680115,0.00013972,2]
[332907870,1721674247007,-327.480184,0.00013972,2]
[332907871,1721674247018,-327.480184,0.00013972,2]
[332907872,1721674247028,-500.0,0.00013972,2]
[332907873,1721674247038,-151.0,0.00013972,2]
[332907874,1721674247047,-1001.464121,0.00013972,2]
[332907875,1721674247057,-292.72601461,0.00013972,2]
[332907876,1721674247278,-708.73810639,0.00013972,2]
[332907877,1721674247287,-249.446277,0.00013972,2]
[332907878,1721674247297,-249.446277,0.00013972,2]
[332907879,1721674247306,-151.0,0.00013972,2]
[332907880,1721674247315,-259.872726,0.00013972,2]
[332907881,1721674247325,-151.0,0.00013972,2]
[332907882,1721674247334,-259.872726,0.00013972,2]
[332907883,1721674247343,-484.80066917,0.00013972,2]
[332907884,1721674247352,-279.776509,0.00013972,2]
[332907885,1721674247362,-279.776509,0.00013972,2]
[332907886,1721674247371,-151.0,0.00013972,2]
[332907887,1721674247380,-151.0,0.00013972,2]
[332907888,1721674247389,-151.0,0.00013972,2]
[332907889,1721674247398,-151.0,0.00013972,2]
[332907890,1721674247408,-243.101011,0.00013972,2]
[332907891,1721674247417,-151.0,0.00013972,2]
[332907892,1721674247426,-151.0,0.00013972,2]
[332907893,1721674247435,-243.101011,0.00013972,2]
[332907894,1721674247444,-151.0,0.00013972,2]
[332907895,1721674247453,-151.0,0.00013972,2]
[332907896,1721674247462,-326.70932,0.00013972,2]
[332907897,1721674247471,-326.70932,0.00013972,2]
[332907898,1721674247480,-151.0,0.00013972,2]
[332907899,1721674247489,-195.87769448,0.00014,2]
[332907900,1721674247498,-29339.72498104,0.00014,2]
[332907901,1721674247507,-210.64416,0.00014,2]
[332907902,1721674247517,-151.0,0.00014,2]
[332907903,1721674247528,-151.0,0.00014,2]
[332907904,1721674247539,-151.0,0.00014,2]
[332907905,1721674247548,-151.0,0.00014,2]
[332907906,1721674247558,-364.355095,0.00014,2]
[332907907,1721674247567,-364.355095,0.00014,2]
[332907908,1721674247576,-151.0,0.00014,2]
[332907909,1721674247585,-620.00418357,0.0001408,2]
[332907910,1721674247595,-287.28224255,0.00014115,2]
[332907911,1721674247604,-5132.16005031,0.00014211,2]
[332907912,1721674247614,-151.0,0.00014223,2]
[332907913,1721674247623,-326.70932,0.00014223,2]
[332907914,1721674247632,-326.70932,0.00014223,2]
[332907915,1721674247641,-151.0,0.00014223,2]
[332907916,1721674247652,-151.0,0.00014225,2]
[332907917,1721674247661,-158.774726,0.00014236,2]
[332907918,1721674247671,-1953.9,0.00014246,2]
[332907919,1721674247680,-999.97,0.00014246,2]
[332907920,1721674247690,-442.33,0.00014246,2]
[332907921,1721674247699,-500.0,0.00014246,2]
[332907922,1721674247709,-1491.64,0.00014246,2]
[332907923,1721674247719,-568.37011016,0.00014246,2]
[332907924,1721674247730,-1985.59,0.00014246,2]
[332907925,1721674247739,-500.0,0.00014246,2]
[332907926,1721674247749,-500.0,0.00014246,2]
[332907927,1721674247759,-500.0,0.00014246,2]
[332907928,1721674247770,-384.83894356,0.00014246,2]
[332907929,1721674247876,-503.59346521,0.00013698,2]
[332907930,1721674247886,-500.0,0.00013698,2]
[332907931,1721674247896,-115.16105644,0.00014246,2]
[332907932,1721674247906,-308.33,0.00014246,2]
[332907933,1721674247916,-231.27976673,0.00014246,2]
[332907934,1721674247926,-380.55,0.00014246,2]
[332907935,1721674247936,-500.0,0.00014246,2]
[332907936,1721674247945,-577.72387215,0.00014246,2]
[332907937,1721674247958,-55.98472245,0.00014246,2]
[332907938,1721674247968,-500.0,0.00014246,2]
[332907939,1721674247977,-500.0,0.00014246,2]
[332907940,1721674247987,-500.0,0.00014246,2]
[332907941,1721674247997,-437.8811919,0.00014246,2]
[332907942,1721674248007,-15.91838857,0.00014246,2]
[332907943,1721674248020,-484.08161143,0.00014246,2]
[332907944,1721674248030,-160.69,0.00014246,2]
[332907945,1721674248040,-376.04,0.00014246,2]
[332907946,1721674248050,-500.0,0.00014246,2]
[332907947,1721674248060,-153.41,0.00014246,2]
[332907948,1721674248070,-383.04,0.00014246,2]
[332907949,1721674248080,-500.0,0.00014246,2]
[332907950,1721674248090,-500.0,0.00014246,2]
[332907951,1721674248100,-500.21686258,0.00014246,2]
[332907952,1721674248110,-500.0,0.00014246,2]
[332907953,1721674248119,-500.0,0.00014246,2]
[332907954,1721674248128,-500.0,0.00014246,2]
[332907955,1721674248138,-262.90599564,0.00014246,2]
[332907956,1721674248148,-500.0,0.00014246,2]
[332907957,1721674248157,-371.00016222,0.00014246,2]
[332907959,1721674248167,-500.0,0.00014246,2]
[332907960,1721674248176,-508.14216732,0.00014246,2]
[332907961,1721674248186,-500.0,0.00014246,2]
[332907962,1721674248195,-500.0,0.00014246,2]
[332907963,1721674248205,-500.0,0.00014246,2]
[332907964,1721674248214,-500.0,0.00014246,2]
[332907965,1721674248224,-500.0,0.00014246,2]
[332907966,1721674248234,-500.0,0.00014246,2]
[332907967,1721674248244,-500.0,0.00014246,2]
[332907968,1721674248253,-545.3,0.00014246,2]
[332907969,1721674248263,-500.0,0.00014246,2]
[332907971,1721674248274,-500.0,0.00014246,2]
[332907973,1721674248284,-500.0,0.00014246,2]
[332907975,1721674248293,-585.7,0.00014246,2]
[332907976,1721674248303,-500.0,0.00014246,2]
[332907977,1721674248313,-176.08,0.00014246,2]
[332907978,1721674248322,-500.0,0.00014246,2]
[332907979,1721674248332,-500.0,0.00014246,2]
[332907980,1721674248342,-500.0,0.00014246,2]
[332907981,1721674248351,-500.0,0.00014246,2]
[332907982,1721674248361,-500.0,0.00014246,2]
[332907983,1721674248371,-500.0,0.00014246,2]
[332907984,1721674248380,-500.0,0.00014246,2]
[332907985,1721674248390,-266.51022137,0.00014246,2]
[332907986,1721674248400,-500.0,0.00014246,2]
[332907987,1721674248411,-629.57450782,0.00014246,2]
[332907988,1721674248420,-500.0,0.00014246,2]
[332907989,1721674248431,-500.0,0.00014246,2]
[332907990,1721674248441,-511.87,0.00014246,2]
[332907991,1721674248450,-500.0,0.00014246,2]
[332907992,1721674248462,-151.0,0.00014246,2]
[332907993,1721674248472,-500.0,0.00014246,2]
[332907994,1721674248481,-151.0,0.00014246,2]
[332907995,1721674248492,-500.0,0.00014246,2]
[332907996,1721674248502,-500.0,0.00014246,2]
[332907997,1721674248512,-232.94306869,0.00014246,2]
[332907998,1721674248523,-500.0,0.00014246,2]
[332907999,1721674248532,-500.0,0.00014246,2]
[332908000,1721674248541,-500.0,0.00014246,2]
[332908001,1721674248551,-1886.51,0.00014246,2]
[332908002,1721674248560,-500.0,0.00014246,2]
[332908003,1721674248572,-500.0,0.00014246,2]
[332908004,1721674248583,-151.0,0.00014246,2]
[332908005,1721674248592,-151.0,0.00014246,2]
[332908006,1721674248602,-151.0,0.00014246,2]
[332908007,1721674248612,-151.0,0.00014246,2]
[332908008,1721674248622,-151.0,0.00014246,2]
[332908009,1721674248631,-151.0,0.00014246,2]
[332908010,1721674248641,-282.343228,0.00014246,2]
[332908011,1721674248650,-243.101011,0.00014246,2]
[332908012,1721674248660,-243.101011,0.00014246,2]
[332908013,1721674248669,-750.0,0.00014247,2]
[332908014,1721674248679,-151.0,0.00014253,2]
[332908015,1721674248688,-293.856307,0.00014253,2]
[332908016,1721674248698,-600.0,0.00014453,2]
[332908017,1721674248707,-2669.62,0.00014508,2]
[332908018,1721674248716,-151.0,0.00014509,2]
[332908019,1721674248728,-278.054906,0.00014509,2]
[332908020,1721674248739,-278.054906,0.00014509,2]
[332908021,1721674248749,-151.0,0.00014509,2]
[332908022,1721674248759,-151.0,0.00014509,2]
[332908023,1721674248768,-151.0,0.00014509,2]
[332908024,1721674248779,-2669.62,0.00014518,2]
[332908025,1721674248789,-1953.9,0.0001452,2]
[332908026,1721674248798,-999.97,0.0001452,2]
[332908027,1721674248810,-500.0,0.0001452,2]
[332908028,1721674248951,-500.0,0.0001452,2]
[332908029,1721674248963,-500.0,0.0001452,2]
[332908030,1721674248973,-500.0,0.0001452,2]
[332908031,1721674248982,-500.0,0.0001452,2]
[332908032,1721674248992,-247.59,0.0001452,2]
[332908033,1721674249002,-500.0,0.0001452,2]
[332908034,1721674249012,-500.0,0.0001452,2]
[332908035,1721674249021,-500.0,0.0001452,2]
[332908036,1721674249031,-500.0,0.0001452,2]
[332908037,1721674249041,-500.0,0.0001452,2]
[332908038,1721674249051,-500.0,0.0001452,2]
[332908039,1721674249061,-500.0,0.0001452,2]
[332908040,1721674249071,-500.0,0.0001452,2]
[332908041,1721674249080,-366.2508088,0.0001452,2]
[332908048,1721675242166,-156.324917,9.999e-05,2]
[332908049,1721675242189,-831.93407308,0.00011942,2]
[332908050,1721675242211,-300.0,0.0001202,2]
[332908051,1721675242232,-245.57867814,0.0001202,2]
[332908052,1721675243091,-54.42132186,0.0001202,2]
[332908053,1721675243113,-24900.0,0.00012021,2]
[332908054,1721675243138,-250.0,0.00012042,2]
[332908055,1721675243160,-394.7073879,0.00012335,2]
[332908056,1721675243181,-831.934073,0.00012937,2]
[332908057,1721675243202,-317.0,0.00013195,2]
[332908058,1721675243224,-420.0,0.00013222,2]
[332908059,1721675243246,-200.0,0.00013425,2]
[332908060,1721675243268,-250.0,0.00013478,2]
[332908061,1721675243290,-250.0,0.00013515,2]
[332908062,1721675243312,-250.0,0.00013552,2]
[332908063,1721675243334,-250.0,0.00013589,2]
[332908064,1721675243354,-629.94480245,0.00013598,2]
[332908065,1721675243374,-736.75996205,0.00013598,2]
[332908066,1721675243395,-2000.0,0.00013598,2]
[332908067,1721675243416,-250.0,0.00013626,2]
[332908068,1721675243439,-250.0,0.00013663,2]
[332908069,1721675243462,-26908.51185485,0.00013688,2]
[332908070,1721675246174,-34963.41802395,0.00013688,2]
[332908071,1721675246196,-500.0,0.00013698,2]
[332908072,1721675246216,-500.0,0.00013698,2]
[332908073,1721675246237,-500.0,0.00013698,2]
[332908074,1721675246258,-500.0,0.00013698,2]
[332908075,1721675246291,-234.0891584,0.00013698,2]
[332908076,1721675246319,-500.0,0.00013698,2]
[332908077,1721675246344,-500.0,0.00013698,2]
[332908078,1721675246366,-500.0,0.00013698,2]
[332908079,1721675246388,-500.0,0.00013698,2]
[332908080,1721675246619,-500.0,0.00013698,2]
[332908081,1721675246644,-500.0,0.00013698,2]
[332908082,1721675246665,-500.0,0.00013698,2]
[332908083,1721675246685,-422.42162559,0.00013698,2]
[332908084,1721675246705,-431.34980111,0.00013698,2]
[332908085,1721675246725,-500.0,0.00013698,2]
[332908086,1721675246745,-501.21320873,0.00013698,2]
[332908087,1721675246765,-500.0,0.00013698,2]
[332908088,1721675246785,-500.0,0.00013698,2]
[332908089,1721675246806,-500.0,0.00013698,2]
[332908090,1721675246827,-500.0,0.00013698,2]
[332908091,1721675246848,-500.0,0.00013698,2]
[332908092,1721675246869,-500.0,0.00013698,2]
[332908093,1721675246889,-500.0,0.00013698,2]
[332908094,1721675246910,-500.0,0.00013698,2]
[332908095,1721675246931,-500.0,0.00013698,2]
[332908096,1721675246951,-500.0,0.00013698,2]
[332908097,1721675246973,-500.0,0.00013698,2]
[332908098,1721675246994,-500.0,0.00013698,2]
[332908099,1721675247014,-500.0,0.00013698,2]
[332908100,1721675247036,-500.0,0.00013698,2]
[332908101,1721675247061,-500.0,0.00013698,2]
[332908102,1721675247081,-501.6814079,0.00013698,2]
[332908103,1721675247102,-500.0,0.00013698,2]
[332908104,1721675247127,-500.0,0.00013698,2]
[332908105,1721675247148,-500.0,0.00013698,2]
[332908106,1721675247170,-500.88649305,0.00013698,2]
[332908107,1721675247194,-500.0,0.00013698,2]
[332908108,1721675247216,-500.0,0.00013698,2]
[332908109,1721675247241,-1929.02,0.00013698,2]
[332908110,1721675247263,-500.0,0.00013698,2]
[332908111,1721675247284,-500.0,0.00013698,2]
[332908112,1721675247306,-500.0,0.00013698,2]
[332908113,1721675247327,-500.0,0.00013698,2]
[332908114,1721675247349,-500.0,0.00013698,2]
[332908115,1721675247371,-500.0,0.00013698,2]
[332908116,1721675247391,-500.0,0.00013698,2]
[332908117,1721675247412,-502.18907915,0.00013698,2]
[332908118,1721675247434,-500.0,0.00013698,2]
[332908119,1721675247456,-500.0,0.00013698,2]
[332908120,1721675247480,-500.0,0.00013698,2]
[332908121,1721675247504,-500.0,0.00013698,2]
[332908122,1721675247527,-508.24530935,0.00013698,2]
[332908123,1721675247549,-500.0,0.00013698,2]
[332908124,1721675247570,-629.57450782,0.00013698,2]
[332908125,1721675247596,-500.0,0.00013698,2]
[332908126,1721675247619,-500.0,0.00013698,2]
[332908127,1721675247641,-500.0,0.00013698,2]
[332908128,1721675247666,-500.0,0.00013698,2]
[332908129,1721675247690,-500.0,0.00013698,2]
[332908130,1721675247713,-500.0,0.00013698,2]
[332908131,1721675247736,-500.0,0.00013698,2]